fUST/lending_fUST_20240103
["ID","MTS","AMOUNT","RATE_DAILY","PERIOD"]
[310034833,1704292251249,-500.0,0.00045753,21]
[310034834,1704292251260,-958.18,0.00045753,21]
[310034835,1704292251270,-500.0,0.00045753,21]
[310034836,1704292251279,-500.0,0.00045753,21]
[310034837,1704292251290,-500.0,0.00045753,21]
[310034838,1704292251300,-500.0,0.00045753,21]
[310034839,1704292251310,-958.18,0.00045753,21]
[310034840,1704292251321,-500.0,0.00045753,21]
[310034841,1704292251330,-958.18,0.00045753,21]
[310034842,1704292251340,-374.15333389,0.00045753,21]
[310034843,1704292251350,-958.18,0.00045753,21]
[310034844,1704292251365,-958.18,0.00045753,21]
[310034845,1704292251375,-958.18,0.00045753,21]
[310034846,1704292251384,-958.18,0.00045753,21]
[310034847,1704292251395,-958.18,0.00045753,21]
[310034848,1704292251405,-958.18,0.00045753,21]
[310034849,1704292251415,-958.18,0.00045753,21]
[310034850,1704292251425,-958.18,0.00045753,21]
[310034851,1704292251435,-958.18,0.00045753,21]
[310034852,1704292251445,-958.18,0.00045753,21]
[310034853,1704292251455,-958.18,0.00045753,21]
[310034854,1704292251465,-958.18,0.00045753,21]
[310034855,1704292251475,-958.18,0.00045753,21]
[310034856,1704292251486,-958.18,0.00045753,21]
[310034857,1704292251496,-958.18,0.00045753,21]
[310034858,1704292251506,-500.0,0.00045753,21]
[310034859,1704292251516,-500.0,0.00045753,21]
[310034860,1704292251526,-589.17189494,0.00045753,21]
[310034861,1704292251536,-958.27120981,0.00045753,21]
[310034862,1704292251547,-500.0,0.00045753,21]
[310034863,1704292251557,-256.02997062,0.00045753,21]
[310034864,1704292251567,-500.0,0.00045753,21]
[310034865,1704292251577,-500.0,0.00045753,21]
[310034866,1704292251588,-500.0,0.00045753,21]
[310034867,1704292251598,-500.0,0.00045753,21]
[310034868,1704292251611,-500.0,0.00045753,21]
[310034869,1704292251620,-500.0,0.00045753,21]
[310034870,1704292251630,-509.54985204,0.00045753,21]
[310034871,1704292251640,-500.0,0.00045753,21]
[310034872,1704292251651,-500.0,0.00045753,21]
[310034873,1704292251661,-500.0,0.00045753,21]
[310034874,1704292251736,-500.0,0.00045753,21]
[310034875,1704292251747,-500.0,0.00045753,21]
[310034876,1704292251758,-500.0,0.00045753,21]
[310034877,1704292251768,-508.36622394,0.00045753,21]
[310034878,1704292251779,-500.0,0.00045753,21]
[310034879,1704292251789,-500.0,0.00045753,21]
[310034880,1704292251801,-500.0,0.00045753,21]
[310034881,1704292251812,-500.0,0.00045753,21]
[310034882,1704292251822,-500.0,0.00045753,21]
[310034883,1704292251833,-500.0,0.00045753,21]
[310034884,1704292251844,-412.50039603,0.00045753,21]
[310034885,1704292251855,-1322.34,0.00045753,21]
[310034886,1704292251865,-1322.34,0.00045753,21]
[310034887,1704292251876,-1322.34,0.00045753,21]
[310034888,1704292251886,-1322.34,0.00045753,21]
[310034889,1704292251896,-1322.34,0.00045753,21]
[310034890,1704292251905,-1322.34,0.00045753,21]
[310034891,1704292251915,-500.91964659,0.00045753,21]
[310034892,1704292251926,-1322.34,0.00045753,21]
[310034893,1704292251937,-1322.34,0.00045753,21]
[310034894,1704292251948,-1322.34,0.00045753,21]
[310034895,1704292251958,-1322.34,0.00045753,21]
[310034896,1704292251968,-1322.34,0.00045753,21]
[310034897,1704292251979,-1322.34,0.00045753,21]
[310034898,1704292251989,-500.0,0.00045753,21]
[310034899,1704292251999,-1322.34,0.00045753,21]
[310034900,1704292252009,-1322.34,0.00045753,21]
[310034901,1704292252021,-500.0,0.00045753,21]
[310034902,1704292252030,-1322.34,0.00045753,21]
[310034903,1704292252040,-562.62215011,0.00045753,21]
[310034904,1704292252050,-1322.34,0.00045753,21]
[310034905,1704292252060,-500.0,0.00045753,21]
[310034906,1704292252070,-500.0,0.00045753,21]
[310034907,1704292252080,-1322.34,0.00045753,21]
[310034908,1704292252091,-500.0,0.00045753,21]
[310034909,1704292252101,-1322.34,0.00045753,21]
[310034910,1704292252113,-1322.34,0.00045753,21]
[310034911,1704292252125,-500.0,0.00045753,21]
[310034912,1704292252135,-1322.34,0.00045753,21]
[310034913,1704292252144,-500.0,0.00045753,21]
[310034914,1704292252154,-1322.34,0.00045753,21]
[310034915,1704292252163,-500.0,0.00045753,21]
[310034916,1704292252173,-1322.34,0.00045753,21]
[310034917,1704292252183,-500.0,0.00045753,21]
[310034918,1704292252193,-315.2240879,0.00045753,21]
[310034919,1704292252205,-1322.34,0.00045753,21]
[310034920,1704292252216,-535.60692297,0.00045753,21]
[310034921,1704292252226,-1322.46489808,0.00045753,21]
[310034922,1704292252236,-500.0,0.00045753,21]
[310034923,1704292252246,-500.0,0.00045753,21]
[310034924,1704292252257,-500.0,0.00045753,21]
[310034925,1704292252267,-500.0,0.00045753,21]
[310034926,1704292252277,-500.0,0.00045753,21]
[310034927,1704292252287,-503.01647509,0.00045753,21]
[310034928,1704292252297,-500.0,0.00045753,21]
[310034929,1704292252307,-633.26999305,0.00045753,21]
[310034930,1704292252317,-271.24854928,0.00045753,21]
[310034931,1704292252329,-500.0,0.00045753,21]
[310034932,1704292252339,-500.0,0.00045753,21]
[310034933,1704292252349,-500.0,0.00045753,21]
[310034934,1704292252362,-500.0,0.00045753,21]
[310034935,1704292252372,-500.0,0.00045753,21]
[310034936,1704292252381,-500.0,0.00045753,21]
[310034937,1704292252391,-500.0,0.00045753,21]
[310034938,1704292252401,-500.0,0.00045753,21]
[310034939,1704292252410,-500.0,0.00045753,21]
[310034940,1704292252420,-500.0,0.00045753,21]
[310034941,1704292252430,-6983.69,0.00045753,21]
[310034942,1704292252439,-500.0,0.00045753,21]
[310034943,1704292252449,-6983.69,0.00045753,21]
[310034944,1704292252459,-500.0,0.00045753,21]
[310034945,1704292252469,-6983.69,0.00045753,21]
[310034946,1704292252478,-500.0,0.00045753,21]
[310034947,1704292252488,-6983.69,0.00045753,21]
[310034948,1704292252498,-500.0,0.00045753,21]
[310034949,1704292252508,-500.0,0.00045753,21]
[310034950,1704292252517,-6983.69,0.00045753,21]
[310034951,1704292252527,-6983.69,0.00045753,21]
[310034952,1704292252536,-500.0,0.00045753,21]
[310034953,1704292252546,-500.0,0.00045753,21]
[310034954,1704292252556,-6983.69,0.00045753,21]
[310034955,1704292252565,-500.0,0.00045753,21]
[310034956,1704292252575,-6983.69,0.00045753,21]
[310034957,1704292252585,-533.63783897,0.00045753,21]
[310034958,1704292252595,-6983.69,0.00045753,21]
[310034959,1704292252607,-6983.69,0.00045753,21]
[310034960,1704292252616,-6983.69,0.00045753,21]
[310034961,1704292252626,-6983.69,0.00045753,21]
[310034962,1704292252635,-6983.69,0.00045753,21]
[310034963,1704292252645,-6983.69,0.00045753,21]
[310034964,1704292252656,-6983.69,0.00045753,21]
[310034965,1704292252666,-6983.69,0.00045753,21]
[310034966,1704292252676,-6983.69,0.00045753,21]
[310034967,1704292252687,-6983.69,0.00045753,21]
[310034968,1704292252697,-6983.69,0.00045753,21]
[310034969,1704292252707,-6983.69,0.00045753,21]
[310034970,1704292252717,-6983.69,0.00045753,21]
[310034971,1704292252726,-6983.69,0.00045753,21]
[310034972,1704292252736,-6983.69,0.00045753,21]
[310034973,1704292252745,-6983.71709877,0.00045753,21]
[310034974,1704292252754,-500.0,0.00045753,21]
[310034975,1704292252763,-500.0,0.00045753,21]
[310034976,1704292252773,-500.0,0.00045753,21]
[310034977,1704292252782,-500.0,0.00045753,21]
[310034978,1704292252791,-500.0,0.00045753,21]
[310034979,1704292252801,-500.0,0.00045753,21]
[310034980,1704292252810,-515.57726247,0.00045753,21]
[310034981,1704292252819,-500.0,0.00045753,21]
[310034982,1704292252828,-500.0,0.00045753,21]
[310034983,1704292252838,-500.0,0.00045753,21]
[310034984,1704292252847,-1520.53545718,0.00045753,10]
[310034985,1704292252858,-3104.27337608,0.00045753,2]
[310034986,1704292252868,-500.0,0.00045753,21]
[310034987,1704292252877,-500.0,0.00045753,21]
[310034988,1704292252886,-272.39582045,0.00045753,21]
[310034989,1704292252896,-2000.0,0.00045753,21]
[310034990,1704292252905,-2000.0,0.00045753,21]
[310034991,1704292252914,-2000.0,0.00045753,21]
[310034992,1704292252924,-2000.0,0.00045753,21]
[310034993,1704292252933,-959.98044806,0.00045753,21]
[310034994,1704292253136,-1040.01955194,0.00045753,21]
[310034995,1704292253146,-2000.0,0.00045753,21]
[310034996,1704292253156,-2000.0,0.00045753,21]
[310034997,1704292253166,-2000.0,0.00045753,21]
[310034998,1704292253175,-2000.0,0.00045753,21]
[310034999,1704292253185,-2000.0,0.00045753,21]
[310035000,1704292253194,-2000.0,0.00045753,21]
[310035001,1704292253204,-2000.0,0.00045753,21]
[310035002,1704292253214,-500.0,0.00045753,21]
[310035003,1704292253223,-2000.0,0.00045753,21]
[310035004,1704292253233,-500.0,0.00045753,21]
[310035005,1704292253243,-500.0,0.00045753,21]
[310035006,1704292253252,-2000.0,0.00045753,21]
[310035007,1704292253265,-551.71731336,0.00045753,21]
[310035008,1704292253275,-501.85473637,0.00045753,21]
[310035009,1704292253285,-500.0,0.00045753,21]
[310035010,1704292253296,-2000.0,0.00045753,21]
[310035011,1704292253306,-2000.0,0.00045753,21]
[310035012,1704292253315,-500.0,0.00045753,21]
[310035013,1704292253324,-2000.0,0.00045753,21]
[310035014,1704292253334,-176.01559969,0.00045753,21]
[310035015,1704292253343,-2000.0,0.00045753,21]
[310035016,1704292253352,-2000.0,0.00045753,21]
[310035017,1704292253363,-2000.0,0.00045753,21]
[310035018,1704292253372,-2000.0,0.00045753,21]
[310035019,1704292253382,-901.6,0.00045753,21]
[310035020,1704292253391,-500.0,0.00045753,21]
[310035021,1704292253401,-512.10116806,0.00045753,21]
[310035022,1704292253410,-503.82937842,0.00045753,21]
[310035023,1704292253419,-500.0,0.00045753,21]
[310035024,1704292253428,-500.0,0.00045753,21]
[310035025,1704292253438,-500.0,0.00045753,21]
[310035026,1704292253447,-500.0,0.00045753,21]
[310035027,1704292253456,-500.0,0.00045753,21]
[310035028,1704292253466,-500.0,0.00045753,21]
[310035029,1704292253476,-500.0,0.00045753,21]
[310035030,1704292253485,-500.0,0.00045753,21]
[310035031,1704292253494,-505.04719697,0.00045753,21]
[310035032,1704292253504,-500.0,0.00045753,21]
[310035033,1704292253513,-500.0,0.00045753,21]
[310035034,1704292253523,-500.0,0.00045753,21]
[310035035,1704292253532,-500.0,0.00045753,21]
[310035036,1704292253542,-500.0,0.00045753,21]
[310035037,1704292253553,-500.0,0.00045753,21]
[310035038,1704292253562,-605.02868244,0.00045753,21]
[310035039,1704292253571,-500.0,0.00045753,21]
[310035040,1704292253581,-500.0,0.00045753,21]
[310035041,1704292253591,-500.0,0.00045753,21]
[310035042,1704292253600,-404.04944752,0.00045753,21]
[310035043,1704292253610,-500.0,0.00045753,21]
[310035044,1704292253620,-500.0,0.00045753,21]
[310035045,1704292253630,-500.0,0.00045753,21]
[310035046,1704292253641,-500.0,0.00045753,21]
[310035047,1704292253650,-500.0,0.00045753,21]
[310035048,1704292253660,-500.0,0.00045753,21]
[310035049,1704292253670,-500.0,0.00045753,21]
[310035050,1704292253679,-500.0,0.00045753,21]
[310035051,1704292253690,-500.0,0.00045753,21]
[310035052,1704292253699,-500.0,0.00045753,21]
[310035053,1704292253709,-500.0,0.00045753,21]
[310035054,1704292253721,-500.0,0.00045753,21]
[310035055,1704292253730,-519.04403224,0.00045753,21]
[310035056,1704292253739,-500.0,0.00045753,21]
[310035057,1704292253748,-500.0,0.00045753,21]
[310035058,1704292253758,-500.0,0.00045753,21]
[310035059,1704292253767,-500.0,0.00045753,21]
[310035060,1704292253777,-353.27263912,0.00045753,21]
[310035061,1704292253786,-500.0,0.00045753,21]
[310035062,1704292253797,-420.54628211,0.00045753,21]
[310035063,1704292253806,-423.98031004,0.00045753,21]
[310035064,1704292253815,-500.0,0.00045753,21]
[310035065,1704292253825,-500.0,0.00045753,21]
[310035066,1704292253834,-500.0,0.00045753,21]
[310035067,1704292253843,-500.0,0.00045753,21]
[310035068,1704292253852,-500.0,0.00045753,21]
[310035069,1704292253863,-500.0,0.00045753,21]
[310035070,1704292253873,-289.10612122,0.00045753,21]
[310035071,1704292253884,-500.0,0.00045753,21]
[310035072,1704292253893,-429.37270665,0.00045753,2]
[310035073,1704292253903,-500.0,0.00045753,21]
[310035074,1704292253912,-500.0,0.00045753,21]
[310035075,1704292253922,-500.0,0.00045753,21]
[310035076,1704292253931,-301.22461052,0.00045753,21]
[310035077,1704292253941,-515.06488603,0.00045753,21]
[310035078,1704292253950,-500.0,0.00045753,21]
[310035079,1704292253959,-500.0,0.00045753,21]
[310035080,1704292253969,-500.0,0.00045753,21]
[310035081,1704292253979,-500.0,0.00045753,21]
[310035082,1704292253988,-500.0,0.00045753,21]
[310035083,1704292253997,-500.0,0.00045753,21]
[310035084,1704292254007,-500.0,0.00045753,21]
[310035085,1704292254017,-500.0,0.00045753,21]
[310035086,1704292254027,-500.0,0.00045753,21]
[310035087,1704292254037,-500.0,0.00045753,21]
[310035088,1704292254046,-500.0,0.00045753,21]
[310035089,1704292254056,-500.0,0.00045753,21]
[310035090,1704292254066,-500.0,0.00045753,21]
[310035091,1704292254076,-500.0,0.00045753,21]
[310035092,1704292254085,-384.84394215,0.00045753,21]
[310035093,1704292254095,-500.0,0.00045753,21]
[310035094,1704292254104,-257.38950685,0.00045753,21]
[310035095,1704292254116,-500.0,0.00045753,21]
[310035096,1704292254126,-500.0,0.00045753,21]
[310035097,1704292254135,-500.0,0.00045753,21]
[310035098,1704292254144,-500.0,0.00045753,21]
[310035099,1704292254153,-500.0,0.00045753,21]
[310035100,1704292254163,-500.0,0.00045753,21]
[310035101,1704292254173,-500.0,0.00045753,21]
[310035102,1704292254182,-500.0,0.00045753,21]
[310035103,1704292254192,-500.0,0.00045753,21]
[310035104,1704292254203,-500.0,0.00045753,21]
[310035105,1704292254213,-614.39682082,0.00045753,21]
[310035106,1704292254222,-500.0,0.00045753,21]
[310035107,1704292254232,-255.66421461,0.00045753,21]
[310035108,1704292254242,-503.19,0.00045753,21]
[310035109,1704292254255,-503.19,0.00045753,21]
[310035110,1704292254265,-503.19,0.00045753,21]
[310035111,1704292254275,-503.19,0.00045753,21]
[310035112,1704292254286,-503.19,0.00045753,21]
[310035113,1704292254296,-3004.18,0.00045753,21]
[310035114,1704292254306,-503.19,0.00045753,21]
[310035115,1704292254367,-3004.18,0.00045753,21]
[310035116,1704292254378,-3004.18,0.00045753,21]
[310035117,1704292254388,-503.19,0.00045753,21]
[310035118,1704292254397,-3004.18,0.00045753,21]
[310035119,1704292254407,-503.19,0.00045753,21]
[310035120,1704292254416,-503.19,0.00045753,21]
[310035121,1704292254425,-503.19,0.00045753,21]
[310035122,1704292254435,-503.19,0.00045753,21]
[310035123,1704292254445,-503.19,0.00045753,21]
[310035124,1704292254454,-11506.71,0.00045753,21]
[310035125,1704292254464,-503.19,0.00045753,21]
[310035126,1704292254476,-11506.71,0.00045753,21]
[310035127,1704292254485,-500.0,0.00045753,21]
[310035128,1704292254494,-11506.71,0.00045753,21]
[310035129,1704292254504,-503.19,0.00045753,21]
[310035130,1704292254514,-11506.71,0.00045753,21]
[310035131,1704292254523,-503.19,0.00045753,21]
[310035132,1704292254533,-500.0,0.00045753,21]
[310035133,1704292254543,-503.19,0.00045753,21]
[310035134,1704292254553,-500.0,0.00045753,21]
[310035135,1704292254562,-503.19,0.00045753,21]
[310035136,1704292254572,-11506.71,0.00045753,21]
[310035137,1704292254582,-11506.71,0.00045753,21]
[310035138,1704292254593,-503.19,0.00045753,21]
[310035139,1704292254602,-500.0,0.00045753,21]
[310035140,1704292254615,-11506.71,0.00045753,21]
[310035141,1704292254626,-503.19,0.00045753,21]
[310035142,1704292254635,-500.0,0.00045753,21]
[310035143,1704292254645,-503.19,0.00045753,21]
[310035144,1704292254654,-11506.71,0.00045753,21]
[310035145,1704292254665,-500.0,0.00045753,21]
[310035146,1704292254675,-503.19,0.00045753,21]
[310035147,1704292254685,-11506.71,0.00045753,21]
[310035148,1704292254695,-11506.71,0.00045753,21]
[310035149,1704292254706,-500.0,0.00045753,21]
[310035150,1704292254716,-11506.71,0.00045753,21]
[310035151,1704292254727,-500.0,0.00045753,21]
[310035152,1704292254737,-11506.71,0.00045753,21]
[310035153,1704292254746,-503.19,0.00045753,21]
[310035154,1704292254757,-304.73094066,0.00045753,7]
[310035155,1704292254767,-11506.71,0.00045753,21]
[310035156,1704292254776,-500.0,0.00045753,21]
[310035157,1704292254786,-503.19,0.00045753,21]
[310035158,1704292254795,-503.36116632,0.00045753,21]
[310035159,1704292254805,-500.0,0.00045753,21]
[310035160,1704292254815,-11506.71,0.00045753,21]
[310035161,1704292254824,-11506.71,0.00045753,21]
[310035162,1704292254834,-500.0,0.00045753,21]
[310035163,1704292254843,-11506.71,0.00045753,21]
[310035164,1704292254852,-500.0,0.00045753,21]
[310035165,1704292254866,-11506.71,0.00045753,21]
[310035166,1704292254875,-317.04807625,0.00045753,21]
[310035167,1704292254884,-11506.71,0.00045753,21]
[310035168,1704292254894,-11506.71,0.00045753,21]
[310035169,1704292254904,-1424.91,0.00045753,21]
[310035170,1704292254913,-11506.71,0.00045753,21]
[310035171,1704292254922,-613.7,0.00045753,21]
[310035172,1704292254931,-1424.91,0.00045753,21]
[310035173,1704292254940,-613.7,0.00045753,21]
[310035174,1704292254950,-1424.91,0.00045753,21]
[310035175,1704292254960,-11506.71,0.00045753,21]
[310035176,1704292254969,-613.7,0.00045753,21]
[310035177,1704292254979,-1424.91,0.00045753,21]
[310035178,1704292254988,-11506.71,0.00045753,21]
[310035179,1704292254997,-613.7,0.00045753,21]
[310035180,1704292255007,-1424.91,0.00045753,21]
[310035181,1704292255017,-613.7,0.00045753,21]
[310035182,1704292255026,-11506.71,0.00045753,21]
[310035183,1704292255035,-1424.91,0.00045753,21]
[310035184,1704292255045,-613.7,0.00045753,21]
[310035185,1704292255054,-11506.73842917,0.00045753,21]
[310035186,1704292255064,-613.7,0.00045753,21]
[310035187,1704292255074,-613.7,0.00045753,21]
[310035188,1704292255083,-613.7,0.00045753,21]
[310035189,1704292255093,-1424.91,0.00045753,21]
[310035190,1704292255103,-1424.91,0.00045753,21]
[310035191,1704292255116,-613.7,0.00045753,21]
[310035192,1704292255126,-613.7,0.00045753,21]
[310035193,1704292255136,-1424.91,0.00045753,21]
[310035194,1704292255147,-1424.91,0.00045753,21]
[310035195,1704292255157,-1424.91,0.00045753,21]
[310035196,1704292255167,-613.7,0.00045753,21]
[310035197,1704292255177,-1424.91,0.00045753,21]
[310035198,1704292255187,-613.7,0.00045753,21]
[310035199,1704292255196,-1424.91,0.00045753,21]
[310035200,1704292255206,-613.7,0.00045753,21]
[310035201,1704292255217,-1424.91,0.00045753,21]
[310035202,1704292255226,-613.7,0.00045753,21]
[310035203,1704292255236,-1424.91,0.00045753,21]
[310035204,1704292255246,-613.7,0.00045753,21]
[310035205,1704292255255,-613.7,0.00045753,21]
[310035206,1704292255265,-1424.91,0.00045753,21]
[310035207,1704292255275,-1424.91,0.00045753,21]
[310035208,1704292255284,-613.7,0.00045753,21]
[310035209,1704292255294,-613.7,0.00045753,21]
[310035210,1704292255303,-1424.91,0.00045753,21]
[310035211,1704292255313,-500.0,0.00045753,21]
[310035212,1704292255322,-872.62974248,0.00045753,21]
[310035213,1704292255348,-552.28025752,0.00045753,21]
[310035214,1704292255359,-126.06899357,0.00045753,21]
[310035215,1704292255371,-373.93100643,0.00045753,21]
[310035216,1704292255381,-613.7,0.00045753,21]
[310035217,1704292255391,-500.0,0.00045753,21]
[310035218,1704292255400,-613.7,0.00045753,21]
[310035219,1704292255409,-500.0,0.00045753,21]
[310035220,1704292255418,-1424.91,0.00045753,21]
[310035221,1704292255428,-613.7,0.00045753,21]
[310035222,1704292255438,-500.0,0.00045753,21]
[310035223,1704292255448,-1424.91,0.00045753,21]
[310035224,1704292255457,-613.7,0.00045753,21]
[310035225,1704292255467,-500.0,0.00045753,21]
[310035226,1704292255476,-1424.91,0.00045753,21]
[310035227,1704292255530,-613.91603895,0.00045753,21]
[310035228,1704292255544,-146.39950659,0.00045753,21]
[310035229,1704292255609,292.44148742,0.00022,4]
[310035230,1704292255883,-347.22107527,0.00043,7]
[310035231,1704292256010,1445.14139671,0.00022,2]
[310035232,1704292256048,-154.76784823,0.00040498,8]
[310035233,1704292256057,-293.6921518,0.000415,4]
[310035234,1704292258002,3826.3698118,0.00022,2]
[310035235,1704292260189,2749.21361081,0.00022,2]
[310035236,1704292271769,292.44148742,0.00022,4]
[310035237,1704292287806,292.44148742,0.00022,4]
[310035238,1704292309777,350.73463763,0.00022,4]
[310035239,1704292359074,-2963.96602629,0.00048238,30]
[310035240,1704292359101,-497036.03397371,0.00048238,30]
[310035241,1704292364168,-187.1688161,0.00036,30]
[310035242,1704292364192,-154.76784823,0.00041171,30]
[310035243,1704292364216,-1327.18059356,0.000422,30]
[310035244,1704292364241,-7215.82199052,0.000449,120]
[310035245,1704292364265,-181.0,0.00045,90]
[310035246,1704292364303,-169.0,0.00045,90]
[310035247,1704292364330,-181.0,0.00045685,90]
[310035248,1704292364358,-199.0,0.00045723,60]
[310035249,1704292364382,-199.0,0.00045723,60]
[310035250,1704292364405,-199.0,0.00045733,60]
[310035251,1704292364429,-199.0,0.00045733,60]
[310035252,1704292364453,-199.0,0.00045743,60]
[310035253,1704292364477,-199.0,0.00045743,60]
[310035254,1704292364506,-4360.84082994,0.00045751,30]
[310035255,1704292364553,-622.95088309,0.00045753,120]
[310035256,1704292364598,-192.78439485,0.00045759,120]
[310035257,1704292364622,-150.0,0.00045799,60]
[310035258,1704292364649,-2000.0,0.000459,39]
[310035259,1704292364674,-2000.0,0.000459,39]
[310035260,1704292364698,-2000.0,0.0004591,39]
[310035261,1704292364722,-2000.0,0.0004591,39]
[310035262,1704292364749,-2000.0,0.0004592,39]
[310035263,1704292364773,-2000.0,0.0004592,39]
[310035264,1704292364797,-2000.0,0.0004593,39]
[310035265,1704292364821,-2000.0,0.0004593,39]
[310035266,1704292364845,-2000.0,0.0004594,39]
[310035267,1704292364869,-3611.391688,0.0004594,39]
[310035268,1704292364892,-151.0,0.00045949,30]
[310035269,1704292364915,-2000.0,0.0004595,39]
[310035270,1704292364938,-2000.0,0.0004596,39]
[310035271,1704292364963,-2000.0,0.0004597,39]
[310035272,1704292364986,-2000.0,0.0004598,39]
[310035273,1704292365009,-3092.118635,0.0004599,39]
[310035274,1704292365032,-1000.0,0.00046,46]
[310035275,1704292365141,-205.17172041,0.00046,60]
[310035276,1704292365166,-64181.01691723,0.00046,30]
[310035277,1704292365190,-430.29860708,0.00046014,120]
[310035278,1704292365218,-151.0,0.00046266,30]
[310035279,1704292365240,-1000.0,0.000465,30]
[310035280,1704292366379,182.78303,0.00042857,30]
[310035298,1704292839603,250.0,0.00032331,2]
[310035299,1704292853498,200.0,0.0003233,2]
[310035300,1704292853888,167.33636934,0.00032056,2]
[310035301,1704292853917,6.44497366,0.00032056,2]
[310035302,1704292878486,412.50539783,0.00032327,2]
[310035303,1704292878515,622.97726142,0.00032327,2]
[310035304,1704292878543,501.6729416,0.00032327,2]
[310035305,1704292878572,622.97726142,0.00032327,2]
[310035307,1704292988436,-21303.72656009,0.00031946,4]
[310035308,1704292988488,-8868.98698529,0.00031947,4]
[310035309,1704292988530,-2129.29306746,0.00031947,4]
[310035310,1704292988570,-351.14060501,0.00031947,4]
[310035311,1704292988614,-10551.30888838,0.00031947,4]
[310035312,1704292988652,-105135.66518324,0.00031947,4]
[310035313,1704292988692,-1154.76946966,0.00031948,4]
[310035314,1704292988733,-793.40016296,0.00031948,4]
[310035315,1704292988771,-1173.90682873,0.00031948,4]
[310035316,1704292988810,-1663.43697951,0.00031948,4]
[310035317,1704292988849,-394.96400341,0.00031948,4]
[310035318,1704292988890,-20402.52105259,0.00031948,4]
[310035319,1704292988933,-4017.38711777,0.00031949,4]
[310035320,1704292988973,-256.24972373,0.00031949,4]
[310035321,1704292989012,-1774.60609081,0.0003195,4]
[310035322,1704292989054,-1050.54870749,0.00031951,2]
[310035323,1704292989091,-666.4896426,0.00031952,5]
[310035324,1704292989126,-236.86655345,0.00031952,4]
[310035325,1704292989162,-355.34821973,0.00031952,4]
[310035326,1704292989199,-433.14504265,0.00031952,4]
[310035327,1704292989235,-154.76784823,0.00031952,4]
[310035328,1704292989270,-172.38000543,0.00031953,5]
[310035329,1704292989307,-3370.17064279,0.00032048,4]
[310035330,1704292989344,-49403.54771169,0.00032048,4]
[310035331,1704292989380,-181.0,0.00032049,2]
[310035332,1704292989540,-2255.11010989,0.00032049,2]
[310035333,1704292989572,-862.52494452,0.00032049,4]
[310035334,1704292989604,-5954.69027185,0.00032049,4]
[310035335,1704292989636,-3633.62502096,0.00032049,4]
[310035336,1704292989667,-3768.09739589,0.00032049,4]
[310035337,1704292989699,-3535.85302225,0.00032049,4]
[310035338,1704292989732,-5015.20486306,0.00032049,4]
[310035339,1704292989762,-1145.00728631,0.0003205,4]
[310035340,1704292989794,-27989.05174612,0.0003205,2]
[310035341,1704292989825,-383.32525908,0.00032051,4]
[310035342,1704292989858,-154.76784823,0.00032051,5]
[310035343,1704292989888,-606.05653356,0.00032051,4]
[310035344,1704292989918,-154.76784823,0.00032051,4]
[310035345,1704292989948,-606.05653356,0.00032051,4]
[310035346,1704292989981,-1858.56073163,0.00032327,2]
[310035347,1704292990011,-25312.13194833,0.00032327,4]
[310035348,1704292990040,-7001.31486509,0.00032327,2]
[310035349,1704292990069,-2631.63248071,0.00033,4]
[310035350,1704293152140,-6454.08669701,0.00031422,4]